[Event "*** Titled Tuesday Blitz"]
[Site "Chess.com"]
[Date "2020.05.05"]
[Round "2"]
[White "GM_DarwinLaylo"]
[Black "Harsha_Bharathakoti"]
[Result "0-1"]
[WhiteElo "2535"]
[BlackElo "2824"]
[TimeControl "180+1"]
[EndTime "10:18:25 PDT"]
[Termination "Harsha_Bharathakoti won by resignation"]

1. c4 {[%clk 0:03:00.1]} 1... e6 {[%clk 0:02:55.4]} 2. d4 {[%clk 0:02:58.1]}
2... d5 {[%clk 0:02:56]} 3. Nf3 {[%clk 0:02:57.6]} 3... Nf6 {[%clk 0:02:55.8]}
4. Nc3 {[%clk 0:02:56.8]} 4... c6 {[%clk 0:02:56]} 5. Bg5 {[%clk 0:02:51.4]}
5... Nbd7 {[%clk 0:02:44.5]} 6. e3 {[%clk 0:02:43.4]} 6... h6 {[%clk 0:02:44.2]}
7. Bh4 {[%clk 0:02:40.8]} 7... g5 {[%clk 0:02:44.2]} 8. Bg3 {[%clk 0:02:39.9]}
8... Nh5 {[%clk 0:02:44.7]} 9. Nd2 {[%clk 0:02:30.6]} 9... Nxg3 {[%clk
0:02:43.4]} 10. hxg3 {[%clk 0:02:30.2]} 10... Bg7 {[%clk 0:02:38.4]} 11. Qc2
{[%clk 0:02:24.8]} 11... Qe7 {[%clk 0:02:27.3]} 12. Be2 {[%clk 0:02:19.6]} 12...
a6 {[%clk 0:02:07.1]} 13. a3 {[%clk 0:02:11.4]} 13... b5 {[%clk 0:01:53.2]} 14.
b3 {[%clk 0:01:47.6]} 14... Bb7 {[%clk 0:01:48]} 15. O-O {[%clk 0:01:42.3]}
15... O-O {[%clk 0:01:38.2]} 16. Rfd1 {[%clk 0:01:22.7]} 16... f5 {[%clk
0:01:30]} 17. Nf1 {[%clk 0:01:02.9]} 17... Rac8 {[%clk 0:01:12.7]} 18. a4 {[%clk
0:00:41.4]} 18... b4 {[%clk 0:01:09.3]} 19. Na2 {[%clk 0:00:41]} 19... a5 {[%clk
0:01:08.6]} 20. cxd5 {[%clk 0:00:26.8]} 20... cxd5 {[%clk 0:01:05.8]} 21. Qb2
{[%clk 0:00:26.7]} 21... f4 {[%clk 0:00:57.1]} 22. Rac1 {[%clk 0:00:20.6]} 22...
fxe3 {[%clk 0:00:52.8]} 23. fxe3 {[%clk 0:00:20.3]} 23... e5 {[%clk 0:00:42.7]}
24. Bg4 {[%clk 0:00:19.6]} 24... Rxc1 {[%clk 0:00:42.2]} 25. Nxc1 {[%clk
0:00:17.1]} 25... Nf6 {[%clk 0:00:42]} 26. Bf5 {[%clk 0:00:11.6]} 26... exd4
{[%clk 0:00:38.8]} 27. exd4 {[%clk 0:00:11.7]} 27... Ne4 {[%clk 0:00:37.6]} 28.
Bxe4 {[%clk 0:00:11.2]} 28... Qxe4 {[%clk 0:00:34.2]} 29. Ne2 {[%clk 0:00:07.8]}
29... Ba6 {[%clk 0:00:33.9]} 30. Rd2 {[%clk 0:00:06.3]} 30... Bxe2 {[%clk
0:00:30.5]} 31. Rxe2 {[%clk 0:00:05.7]} 31... Bxd4+ {[%clk 0:00:31.1]} 0-1

[Event "*** Titled Tuesday Blitz"]
[Site "Chess.com"]
[Date "2020.05.05"]
[Round "2"]
[White "sergeikim"]
[Black "XDPS"]
[Result "0-1"]
[WhiteElo "2484"]
[BlackElo "2709"]
[TimeControl "180+1"]
[EndTime "10:18:25 PDT"]
[Termination "XDPS won on time"]

1. d4 {[%clk 0:03:00.9]} 1... d5 {[%clk 0:02:54.8]} 2. c4 {[%clk 0:03:00.7]}
2... e6 {[%clk 0:02:45.5]} 3. Nc3 {[%clk 0:03:00]} 3... Nf6 {[%clk 0:02:45.5]}
4. Nf3 {[%clk 0:02:59.4]} 4... c6 {[%clk 0:02:45.2]} 5. e3 {[%clk 0:02:58]} 5...
Nbd7 {[%clk 0:02:45.3]} 6. Bd3 {[%clk 0:02:57.2]} 6... dxc4 {[%clk 0:02:44.7]}
7. Bxc4 {[%clk 0:02:56.5]} 7... b5 {[%clk 0:02:45.3]} 8. Bb3 {[%clk 0:02:56.4]}
8... b4 {[%clk 0:02:43.8]} 9. Ne2 {[%clk 0:02:52.6]} 9... Be7 {[%clk 0:02:39.2]}
10. O-O {[%clk 0:02:52.3]} 10... O-O {[%clk 0:02:39.6]} 11. Ng3 {[%clk
0:02:50.3]} 11... c5 {[%clk 0:02:38.7]} 12. e4 {[%clk 0:02:45.8]} 12... Bb7
{[%clk 0:02:25.2]} 13. d5 {[%clk 0:02:30.6]} 13... exd5 {[%clk 0:02:16.8]} 14.
e5 {[%clk 0:02:19.5]} 14... Ng4 {[%clk 0:02:10.5]} 15. Bf4 {[%clk 0:02:19.1]}
15... c4 {[%clk 0:02:08.7]} 16. Bc2 {[%clk 0:02:16.3]} 16... f6 {[%clk
0:01:52.6]} 17. e6 {[%clk 0:02:05.7]} 17... Nde5 {[%clk 0:01:48.4]} 18. Nd4
{[%clk 0:02:01.6]} 18... Kh8 {[%clk 0:01:04.4]} 19. h3 {[%clk 0:01:58.4]} 19...
Nh6 {[%clk 0:01:04.3]} 20. Bxh6 {[%clk 0:01:46.3]} 20... gxh6 {[%clk 0:01:05.2]}
21. Qh5 {[%clk 0:01:05.6]} 21... Rg8 {[%clk 0:01:03.2]} 22. Qxh6 {[%clk
0:01:03.5]} 22... Nd3 {[%clk 0:01:01.4]} 23. Bxd3 {[%clk 0:00:59.1]} 23... cxd3
{[%clk 0:01:01.3]} 24. Ngf5 {[%clk 0:00:58.2]} 24... Rg6 {[%clk 0:01:00.8]} 25.
Qh4 {[%clk 0:00:56.3]} 25... Bd6 {[%clk 0:00:44.9]} 26. Rad1 {[%clk 0:00:42.7]}
26... Be5 {[%clk 0:00:41.6]} 27. Rfe1 {[%clk 0:00:33.2]} 27... Qg8 {[%clk
0:00:34.1]} 28. g4 {[%clk 0:00:19.8]} 28... Rg5 {[%clk 0:00:27.2]} 29. Rxd3
{[%clk 0:00:17.1]} 29... Re8 {[%clk 0:00:25.6]} 30. Nh6 {[%clk 0:00:06.7]} 30...
Qg6 {[%clk 0:00:24.7]} 31. Nf7+ {[%clk 0:00:02.9]} 31... Kg8 {[%clk 0:00:25]}
32. Nxg5 {[%clk 0:00:01.3]} 32... fxg5 {[%clk 0:00:21.8]} 33. Qh5 {[%clk
0:00:01.2]} 33... Bf4 {[%clk 0:00:12.3]} 0-1

[Event "*** Titled Tuesday Blitz"]
[Site "Chess.com"]
[Date "2020.05.05"]
[Round "2"]
[White "OK97"]
[Black "Justinz"]
[Result "1-0"]
[WhiteElo "2713"]
[BlackElo "2329"]
[TimeControl "180+1"]
[EndTime "10:18:26 PDT"]
[Termination "OK97 won on time"]

1. e4 {[%clk 0:03:00.9]} 1... c5 {[%clk 0:02:59.1]} 2. Nf3 {[%clk 0:03:01.1]}
2... d6 {[%clk 0:02:59]} 3. d4 {[%clk 0:03:01.3]} 3... cxd4 {[%clk 0:02:59.9]}
4. Nxd4 {[%clk 0:03:02.2]} 4... Nf6 {[%clk 0:02:59.6]} 5. Nc3 {[%clk 0:03:02.8]}
5... a6 {[%clk 0:02:59.9]} 6. h4 {[%clk 0:03:03.2]} 6... e6 {[%clk 0:02:46.2]}
7. g4 {[%clk 0:03:02.7]} 7... Nfd7 {[%clk 0:02:43.2]} 8. g5 {[%clk 0:03:00.4]}
8... Be7 {[%clk 0:02:42.3]} 9. Be3 {[%clk 0:02:56.2]} 9... Qc7 {[%clk
0:02:41.5]} 10. Qd2 {[%clk 0:02:46.2]} 10... Nc6 {[%clk 0:02:41.3]} 11. f4
{[%clk 0:02:39.4]} 11... b5 {[%clk 0:02:27.2]} 12. Nxc6 {[%clk 0:02:32.7]} 12...
Qxc6 {[%clk 0:02:25.1]} 13. Bg2 {[%clk 0:02:31.8]} 13... Bb7 {[%clk 0:02:18.7]}
14. O-O-O {[%clk 0:02:30.4]} 14... Rc8 {[%clk 0:02:03.9]} 15. Kb1 {[%clk
0:02:26]} 15... Nb6 {[%clk 0:01:47.8]} 16. Bxb6 {[%clk 0:02:20.7]} 16... Qxb6
{[%clk 0:01:45.9]} 17. h5 {[%clk 0:02:21.2]} 17... h6 {[%clk 0:01:12.7]} 18. g6
{[%clk 0:01:44.2]} 18... fxg6 {[%clk 0:01:10.7]} 19. hxg6 {[%clk 0:01:41.4]}
19... b4 {[%clk 0:00:58.8]} 20. Ne2 {[%clk 0:01:34]} 20... Bf6 {[%clk
0:00:55.9]} 21. Qxd6 {[%clk 0:01:06.7]} 21... Qxd6 {[%clk 0:00:48.9]} 22. Rxd6
{[%clk 0:01:07.6]} 22... Ke7 {[%clk 0:00:48.8]} 23. Rb6 {[%clk 0:01:05.8]} 23...
Rc7 {[%clk 0:00:40.7]} 24. Rxb7 {[%clk 0:01:02.5]} 24... Rxb7 {[%clk 0:00:40.1]}
25. e5 {[%clk 0:01:03.1]} 25... Rc7 {[%clk 0:00:40.3]} 26. exf6+ {[%clk
0:01:01.2]} 26... Kxf6 {[%clk 0:00:40.5]} 27. Be4 {[%clk 0:00:59.9]} 27... Rd8
{[%clk 0:00:38.9]} 28. Bd3 {[%clk 0:00:54.1]} 28... a5 {[%clk 0:00:35.1]} 29. b3
{[%clk 0:00:45]} 29... Rc5 {[%clk 0:00:29.9]} 30. Ng3 {[%clk 0:00:42.6]} 30...
Ke7 {[%clk 0:00:26.8]} 31. Re1 {[%clk 0:00:38.5]} 31... Rdd5 {[%clk 0:00:20.2]}
32. Bc4 {[%clk 0:00:33.6]} 32... Rd8 {[%clk 0:00:09.1]} 33. Rxe6+ {[%clk
0:00:30.6]} 33... Kf8 {[%clk 0:00:09.1]} 34. Ne4 {[%clk 0:00:27.3]} 34... Rh5
{[%clk 0:00:05.9]} 35. Nd6 {[%clk 0:00:23.8]} 35... Rh1+ {[%clk 0:00:02.5]} 36.
Kb2 {[%clk 0:00:24]} 36... Rd1 {[%clk 0:00:02.9]} 37. Nb7 {[%clk 0:00:19.5]} 1-0

[Event "*** Titled Tuesday Blitz"]
[Site "Chess.com"]
[Date "2020.05.05"]
[Round "2"]
[White "ErikRonka"]
[Black "Karina_Ivanova"]
[Result "1-0"]
[WhiteElo "2410"]
[BlackElo "2162"]
[TimeControl "180+1"]
[EndTime "10:18:26 PDT"]
[Termination "ErikRonka won by resignation"]

1. e4 {[%clk 0:03:00.9]} 1... c6 {[%clk 0:02:59.7]} 2. Nf3 {[%clk 0:02:59.9]}
2... d5 {[%clk 0:03:00.6]} 3. d3 {[%clk 0:02:59.4]} 3... dxe4 {[%clk 0:02:59.8]}
4. dxe4 {[%clk 0:02:59.2]} 4... Qxd1+ {[%clk 0:02:59.8]} 5. Kxd1 {[%clk
0:03:00.1]} 5... Bg4 {[%clk 0:02:59.1]} 6. Be3 {[%clk 0:02:59.8]} 6... Nd7
{[%clk 0:02:57.5]} 7. Nd2 {[%clk 0:02:59.7]} 7... O-O-O {[%clk 0:02:56.6]} 8.
Be2 {[%clk 0:02:59.8]} 8... e5 {[%clk 0:02:50.9]} 9. Ne1 {[%clk 0:02:49.5]} 9...
Bxe2+ {[%clk 0:02:49.7]} 10. Kxe2 {[%clk 0:02:50.4]} 10... Bc5 {[%clk
0:02:49.6]} 11. Nd3 {[%clk 0:02:49.5]} 11... Bxe3 {[%clk 0:02:48.6]} 12. Kxe3
{[%clk 0:02:50.4]} 12... f6 {[%clk 0:02:43.5]} 13. Nc4 {[%clk 0:02:28.9]} 13...
Nb6 {[%clk 0:02:41.1]} 14. Nxb6+ {[%clk 0:02:22.9]} 14... axb6 {[%clk
0:02:40.9]} 15. a4 {[%clk 0:02:20.2]} 15... Ne7 {[%clk 0:02:36.2]} 16. a5 {[%clk
0:02:19.8]} 16... Kc7 {[%clk 0:02:28.4]} 17. axb6+ {[%clk 0:02:09.8]} 17... Kxb6
{[%clk 0:02:28]} 18. Ra3 {[%clk 0:01:42.6]} 18... Ra8 {[%clk 0:02:27]} 19. Rb3+
{[%clk 0:01:42.5]} 19... Kc7 {[%clk 0:02:15.8]} 20. Nc5 {[%clk 0:01:42]} 20...
b5 {[%clk 0:02:08.5]} 21. Rd1 {[%clk 0:01:32.7]} 21... Kb6 {[%clk 0:02:00.2]}
22. Ne6 {[%clk 0:00:24.4]} 22... g6 {[%clk 0:01:51]} 23. Rd7 {[%clk 0:00:23.8]}
23... Ra7 {[%clk 0:01:49.6]} 24. Rd1 {[%clk 0:00:13.9]} 24... Rc8 {[%clk
0:01:35.9]} 25. c4 {[%clk 0:00:13]} 25... f5 {[%clk 0:01:22.6]} 26. c5+ {[%clk
0:00:12.9]} 26... Kb7 {[%clk 0:01:21.1]} 27. Rd7+ {[%clk 0:00:12.7]} 27... Ka8
{[%clk 0:01:20.9]} 28. Ra3 {[%clk 0:00:10.4]} 28... Rxa3+ {[%clk 0:01:19.3]} 29.
bxa3 {[%clk 0:00:11.3]} 29... f4+ {[%clk 0:01:12.9]} 30. Kf3 {[%clk 0:00:11.4]}
30... Ng8 {[%clk 0:01:07.6]} 31. Rxh7 {[%clk 0:00:08.6]} 31... Kb8 {[%clk
0:00:59.4]} 32. Rg7 {[%clk 0:00:08.2]} 32... Re8 {[%clk 0:00:57.9]} 33. Rxg6
{[%clk 0:00:08.2]} 33... Ne7 {[%clk 0:00:57.5]} 34. Rg7 {[%clk 0:00:07.7]} 34...
Nc8 {[%clk 0:00:52.4]} 35. Ng5 {[%clk 0:00:07.9]} 35... Rd8 {[%clk 0:00:51]} 36.
h4 {[%clk 0:00:08]} 36... Rd3+ {[%clk 0:00:49.7]} 37. Kg4 {[%clk 0:00:08.1]}
37... Rxa3 {[%clk 0:00:48.9]} 38. h5 {[%clk 0:00:08.4]} 38... b4 {[%clk
0:00:47.8]} 39. h6 {[%clk 0:00:08.6]} 39... b3 {[%clk 0:00:47.8]} 40. h7 {[%clk
0:00:06.5]} 40... b2 {[%clk 0:00:47.6]} 41. h8=Q {[%clk 0:00:06.5]} 41... b1=Q
{[%clk 0:00:46.2]} 42. Qh7 {[%clk 0:00:04.2]} 42... Ra7 {[%clk 0:00:44.1]} 43.
Rxa7 {[%clk 0:00:02.3]} 43... Nxa7 {[%clk 0:00:43.8]} 44. Qd7 {[%clk 0:00:03.2]}
44... Qd1+ {[%clk 0:00:42.3]} 45. Qxd1 {[%clk 0:00:02.3]} 1-0

[Event "*** Titled Tuesday Blitz"]
[Site "Chess.com"]
[Date "2020.05.05"]
[Round "2"]
[White "m-garcett"]
[Black "WastefulJustice"]
[Result "0-1"]
[WhiteElo "2025"]
[BlackElo "2363"]
[TimeControl "180+1"]
[EndTime "10:18:28 PDT"]
[Termination "WastefulJustice won by resignation"]

1. e4 {[%clk 0:03:00.2]} 1... d6 {[%clk 0:03:00]} 2. d4 {[%clk 0:02:59.4]} 2...
Nf6 {[%clk 0:03:00.1]} 3. Nc3 {[%clk 0:02:59.2]} 3... c5 {[%clk 0:02:59.7]} 4.
Nf3 {[%clk 0:02:54]} 4... cxd4 {[%clk 0:02:59.1]} 5. Nxd4 {[%clk 0:02:54.9]}
5... a6 {[%clk 0:02:59.2]} 6. Bg5 {[%clk 0:02:53.9]} 6... e6 {[%clk 0:02:57.9]}
7. f4 {[%clk 0:02:53.2]} 7... Qb6 {[%clk 0:02:55.8]} 8. Qd2 {[%clk 0:02:47.1]}
8... Qxb2 {[%clk 0:02:51.9]} 9. Nb3 {[%clk 0:02:46.2]} 9... Qa3 {[%clk
0:02:44.5]} 10. Be2 {[%clk 0:02:38.6]} 10... Be7 {[%clk 0:02:39.4]} 11. O-O
{[%clk 0:02:29.8]} 11... Nbd7 {[%clk 0:02:36.7]} 12. f5 {[%clk 0:01:54.4]} 12...
O-O {[%clk 0:02:31.6]} 13. Nd4 {[%clk 0:01:48.8]} 13... Nc5 {[%clk 0:02:13.6]}
14. fxe6 {[%clk 0:01:41.4]} 14... Bxe6 {[%clk 0:02:06.8]} 15. Nxe6 {[%clk
0:01:36.7]} 15... fxe6 {[%clk 0:02:06.3]} 16. Bd3 {[%clk 0:01:08]} 16... Qa5
{[%clk 0:01:40.3]} 17. Nd5 {[%clk 0:00:55.4]} 17... Qxd2 {[%clk 0:01:39.2]} 18.
Nxe7+ {[%clk 0:00:54.6]} 18... Kf7 {[%clk 0:01:39.4]} 19. Bxd2 {[%clk
0:00:48.7]} 19... Kxe7 {[%clk 0:01:39.9]} 20. Rab1 {[%clk 0:00:44.8]} 20... b5
{[%clk 0:01:38.4]} 21. e5 {[%clk 0:00:41.9]} 21... dxe5 {[%clk 0:01:37]} 22. Bb4
{[%clk 0:00:41.1]} 22... Rac8 {[%clk 0:01:35.2]} 23. Rfe1 {[%clk 0:00:34.2]}
23... e4 {[%clk 0:01:33.4]} 24. Bxe4 {[%clk 0:00:30.8]} 24... Nxe4 {[%clk
0:01:32.4]} 25. Rxe4 {[%clk 0:00:31.7]} 25... Rf5 {[%clk 0:01:31.8]} 26. Rbe1
{[%clk 0:00:29.6]} 26... Rc6 {[%clk 0:01:30]} 27. Re5 {[%clk 0:00:22.4]} 27...
Kf6 {[%clk 0:00:44.3]} 28. Bc3 {[%clk 0:00:18.2]} 28... Rxe5 {[%clk 0:00:36.7]}
29. Rxe5 {[%clk 0:00:17.6]} 29... Kf7 {[%clk 0:00:32.4]} 30. Bb4 {[%clk
0:00:13.9]} 30... Nd7 {[%clk 0:00:30.8]} 31. Re2 {[%clk 0:00:12]} 31... Nf6
{[%clk 0:00:30.5]} 32. c3 {[%clk 0:00:11.6]} 32... Nd5 {[%clk 0:00:30.2]} 33.
Rf2+ {[%clk 0:00:11.1]} 33... Kg6 {[%clk 0:00:27.4]} 34. Ba5 {[%clk 0:00:07.3]}
34... Rc4 {[%clk 0:00:17.6]} 35. a3 {[%clk 0:00:05.8]} 35... Nxc3 {[%clk
0:00:16.2]} 36. Re2 {[%clk 0:00:04.2]} 36... Nxe2+ {[%clk 0:00:15.6]} 0-1

[Event "*** Titled Tuesday Blitz"]
[Site "Chess.com"]
[Date "2020.05.05"]
[Round "2"]
[White "Msb2"]
[Black "KoustavChatterjee1"]
[Result "0-1"]
[WhiteElo "2913"]
[BlackElo "2583"]
[TimeControl "180+1"]
[EndTime "10:18:29 PDT"]
[Termination "KoustavChatterjee1 won by resignation"]

1. d4 {[%clk 0:03:00.9]} 1... Nf6 {[%clk 0:03:00.9]} 2. c4 {[%clk 0:02:53.9]}
2... e6 {[%clk 0:03:00.7]} 3. Nc3 {[%clk 0:02:54.5]} 3... Bb4 {[%clk 0:03:00.4]}
4. e3 {[%clk 0:02:54.8]} 4... O-O {[%clk 0:03:00]} 5. Bd2 {[%clk 0:02:55.1]}
5... d5 {[%clk 0:02:57.9]} 6. Nf3 {[%clk 0:02:54.9]} 6... b6 {[%clk 0:02:58.4]}
7. cxd5 {[%clk 0:02:54]} 7... exd5 {[%clk 0:02:58.2]} 8. Bd3 {[%clk 0:02:54.6]}
8... Bb7 {[%clk 0:02:57.1]} 9. O-O {[%clk 0:02:54.2]} 9... Nbd7 {[%clk
0:02:56.6]} 10. Rc1 {[%clk 0:02:54.5]} 10... a6 {[%clk 0:02:51.3]} 11. Ne5
{[%clk 0:02:54.8]} 11... Bd6 {[%clk 0:02:51.5]} 12. f4 {[%clk 0:02:50.1]} 12...
c5 {[%clk 0:02:51.5]} 13. Qf3 {[%clk 0:02:50.7]} 13... Re8 {[%clk 0:02:46.9]}
14. Be1 {[%clk 0:02:46.8]} 14... b5 {[%clk 0:02:43.1]} 15. Bh4 {[%clk
0:02:46.2]} 15... Be7 {[%clk 0:02:38.2]} 16. Kh1 {[%clk 0:02:41]} 16... b4
{[%clk 0:02:34.7]} 17. Ne2 {[%clk 0:02:37]} 17... Ne4 {[%clk 0:02:32.6]} 18.
Bxe7 {[%clk 0:02:30.1]} 18... Rxe7 {[%clk 0:02:33.5]} 19. Bxe4 {[%clk
0:02:26.6]} 19... dxe4 {[%clk 0:02:32.6]} 20. Qh3 {[%clk 0:02:26.7]} 20... cxd4
{[%clk 0:02:30.6]} 21. Nxd4 {[%clk 0:02:07.6]} 21... Nxe5 {[%clk 0:02:26.7]} 22.
fxe5 {[%clk 0:02:08.5]} 22... Rxe5 {[%clk 0:02:26.6]} 23. Qg3 {[%clk 0:02:04.6]}
23... Qg5 {[%clk 0:02:17]} 24. Qf2 {[%clk 0:01:54.1]} 24... Bd5 {[%clk 0:02:15]}
25. Rc7 {[%clk 0:01:52.1]} 25... Re7 {[%clk 0:02:09.7]} 26. Rfc1 {[%clk
0:01:35.8]} 26... Rxc7 {[%clk 0:02:04.6]} 27. Rxc7 {[%clk 0:01:36.7]} 27... Qd8
{[%clk 0:01:59.3]} 28. Rc5 {[%clk 0:01:35]} 28... Rc8 {[%clk 0:01:58.8]} 29. Qc2
{[%clk 0:01:33.4]} 29... Rxc5 {[%clk 0:01:57.2]} 30. Qxc5 {[%clk 0:01:34.3]}
30... Bxa2 {[%clk 0:01:57.1]} 31. Qxb4 {[%clk 0:01:34]} 31... h6 {[%clk
0:01:52.5]} 32. h3 {[%clk 0:01:29]} 32... Qg5 {[%clk 0:01:48.2]} 33. Qc3 {[%clk
0:01:19.8]} 33... Qg3 {[%clk 0:01:40.4]} 34. Qc8+ {[%clk 0:01:15.8]} 34... Kh7
{[%clk 0:01:40.5]} 35. Qf5+ {[%clk 0:01:16.4]} 35... Qg6 {[%clk 0:01:40.1]} 36.
Qf4 {[%clk 0:01:11]} 36... Bc4 {[%clk 0:01:35.5]} 37. Kh2 {[%clk 0:01:10.9]}
37... Bd3 {[%clk 0:01:34.6]} 38. b3 {[%clk 0:01:09.3]} 38... f6 {[%clk
0:01:30.5]} 39. Qc7 {[%clk 0:01:05.7]} 39... Qg5 {[%clk 0:01:29.1]} 40. Ne6
{[%clk 0:01:01.6]} 40... Qe5+ {[%clk 0:01:22.1]} 41. Qxe5 {[%clk 0:00:57.3]}
41... fxe5 {[%clk 0:01:23]} 42. Kg3 {[%clk 0:00:52]} 42... Kg6 {[%clk
0:01:21.7]} 43. Kf2 {[%clk 0:00:49.3]} 43... Kf6 {[%clk 0:01:21.5]} 44. Nc5
{[%clk 0:00:49.1]} 44... Ke7 {[%clk 0:01:20.1]} 45. h4 {[%clk 0:00:47.6]} 45...
Kd6 {[%clk 0:01:19.1]} 46. Na4 {[%clk 0:00:47.9]} 46... Bc2 {[%clk 0:01:17.8]}
47. Nc3 {[%clk 0:00:43.4]} 47... Kc5 {[%clk 0:01:17.9]} 48. Ke1 {[%clk
0:00:39.8]} 48... Kb4 {[%clk 0:01:14.7]} 49. Kd2 {[%clk 0:00:39.7]} 49... Kxb3
{[%clk 0:01:15.1]} 50. Nd5 {[%clk 0:00:30.9]} 50... a5 {[%clk 0:01:14.1]} 51.
Nb6 {[%clk 0:00:23.6]} 51... Bd3 {[%clk 0:01:13.5]} 52. Nd7 {[%clk 0:00:24.5]}
52... a4 {[%clk 0:01:13.1]} 53. Nc5+ {[%clk 0:00:24.2]} 53... Kb4 {[%clk
0:01:13.3]} 54. Nd7 {[%clk 0:00:20.4]} 54... a3 {[%clk 0:01:13]} 55. Kc1 {[%clk
0:00:19.9]} 55... Kc3 {[%clk 0:01:13.2]} 56. Nb6 {[%clk 0:00:10.5]} 56... a2
{[%clk 0:01:13.3]} 57. Na4+ {[%clk 0:00:10.7]} 57... Kb3 {[%clk 0:01:12.9]} 58.
Nc5+ {[%clk 0:00:10.4]} 58... Kc4 {[%clk 0:01:13]} 0-1

[Event "*** Titled Tuesday Blitz"]
[Site "Chess.com"]
[Date "2020.05.05"]
[Round "2"]
[White "tteshan"]
[Black "NikolaGry"]
[Result "0-1"]
[WhiteElo "2217"]
[BlackElo "2607"]
[TimeControl "180+1"]
[EndTime "10:18:29 PDT"]
[Termination "NikolaGry won by resignation"]

1. d4 {[%clk 0:03:00.9]} 1... d5 {[%clk 0:02:59.7]} 2. c4 {[%clk 0:03:00.7]}
2... Nc6 {[%clk 0:02:58.8]} 3. cxd5 {[%clk 0:02:52.7]} 3... Qxd5 {[%clk
0:02:58]} 4. Nf3 {[%clk 0:02:52.4]} 4... e5 {[%clk 0:02:57.3]} 5. e3 {[%clk
0:02:33.4]} 5... exd4 {[%clk 0:02:43.8]} 6. Nxd4 {[%clk 0:02:24.4]} 6... Nxd4
{[%clk 0:02:37]} 7. exd4 {[%clk 0:02:20.6]} 7... Nf6 {[%clk 0:02:29]} 8. Nc3
{[%clk 0:02:11.8]} 8... Qd8 {[%clk 0:02:28]} 9. Bc4 {[%clk 0:01:59.9]} 9... Be7
{[%clk 0:02:22.9]} 10. O-O {[%clk 0:01:55.9]} 10... O-O {[%clk 0:02:22.9]} 11.
h3 {[%clk 0:01:52.4]} 11... a6 {[%clk 0:02:19.2]} 12. Re1 {[%clk 0:01:51.8]}
12... b5 {[%clk 0:02:15.6]} 13. Bb3 {[%clk 0:01:51.2]} 13... Bb7 {[%clk
0:02:15]} 14. Bf4 {[%clk 0:01:41.4]} 14... Re8 {[%clk 0:01:58.8]} 15. Rc1 {[%clk
0:01:35.1]} 15... Bd6 {[%clk 0:01:49.6]} 16. Rxe8+ {[%clk 0:01:13.7]} 16... Nxe8
{[%clk 0:01:34.7]} 17. Qd2 {[%clk 0:01:09.9]} 17... Nf6 {[%clk 0:01:16.6]} 18.
Ne2 {[%clk 0:00:45.8]} 18... Qf8 {[%clk 0:01:04.1]} 19. Ng3 {[%clk 0:00:41]}
19... g6 {[%clk 0:00:42.2]} 20. Bh6 {[%clk 0:00:32.4]} 20... Qd8 {[%clk
0:00:38.9]} 21. Qg5 {[%clk 0:00:16.8]} 21... Ne4 {[%clk 0:00:29.2]} 22. Nxe4
{[%clk 0:00:12.5]} 22... Bxe4 {[%clk 0:00:25.3]} 23. Qe3 {[%clk 0:00:11.6]}
23... Bb7 {[%clk 0:00:22.5]} 24. Re1 {[%clk 0:00:09]} 24... Bf8 {[%clk
0:00:20.1]} 25. Bg5 {[%clk 0:00:09.2]} 25... Qd7 {[%clk 0:00:18.3]} 26. Bf6
{[%clk 0:00:09.6]} 26... Bd5 {[%clk 0:00:17.1]} 27. Bxd5 {[%clk 0:00:09]} 27...
Qxd5 {[%clk 0:00:17.1]} 28. Qe5 {[%clk 0:00:09.4]} 28... Qxe5 {[%clk 0:00:16.1]}
29. Bxe5 {[%clk 0:00:09.8]} 29... c5 {[%clk 0:00:15.1]} 30. dxc5 {[%clk
0:00:09.7]} 30... Bxc5 {[%clk 0:00:15.2]} 31. Bc3 {[%clk 0:00:10.1]} 31... Rd8
{[%clk 0:00:13.9]} 32. g3 {[%clk 0:00:09.3]} 32... Bf8 {[%clk 0:00:13.5]} 33. b4
{[%clk 0:00:09.5]} 33... Bg7 {[%clk 0:00:13.5]} 34. Re2 {[%clk 0:00:09.5]} 34...
Bxc3 {[%clk 0:00:13.1]} 35. Rc2 {[%clk 0:00:09.4]} 35... Bxb4 {[%clk 0:00:13.1]}
36. a4 {[%clk 0:00:09.7]} 36... bxa4 {[%clk 0:00:12.9]} 37. Rc6 {[%clk
0:00:09.8]} 37... a5 {[%clk 0:00:12.6]} 38. Ra6 {[%clk 0:00:09.9]} 38... a3
{[%clk 0:00:12.8]} 39. Kg2 {[%clk 0:00:10.1]} 39... a2 {[%clk 0:00:12.5]} 0-1

[Event "*** Titled Tuesday Blitz"]
[Site "Chess.com"]
[Date "2020.05.05"]
[Round "2"]
[White "RaunakSadhwani2005"]
[Black "Gyapiking"]
[Result "1-0"]
[WhiteElo "2871"]
[BlackElo "2457"]
[TimeControl "180+1"]
[EndTime "10:18:29 PDT"]
[Termination "RaunakSadhwani2005 won by checkmate"]

1. e4 {[%clk 0:03:00.9]} 1... Nc6 {[%clk 0:02:59.4]} 2. Nc3 {[%clk 0:02:57.7]}
2... e5 {[%clk 0:02:58.6]} 3. Bc4 {[%clk 0:02:58]} 3... Nf6 {[%clk 0:02:56.4]}
4. d3 {[%clk 0:02:58.1]} 4... Na5 {[%clk 0:02:56.2]} 5. Nge2 {[%clk 0:02:57.8]}
5... Be7 {[%clk 0:02:53.8]} 6. O-O {[%clk 0:02:57]} 6... O-O {[%clk 0:02:53.8]}
7. a4 {[%clk 0:02:57]} 7... Nxc4 {[%clk 0:02:53]} 8. dxc4 {[%clk 0:02:57.9]}
8... d6 {[%clk 0:02:52]} 9. Qd3 {[%clk 0:02:57.2]} 9... Nd7 {[%clk 0:02:48.1]}
10. Qg3 {[%clk 0:02:51.9]} 10... Nc5 {[%clk 0:02:47.8]} 11. Bh6 {[%clk
0:02:46.5]} 11... Bf6 {[%clk 0:02:45.6]} 12. b3 {[%clk 0:02:30.7]} 12... Kh8
{[%clk 0:02:44.8]} 13. Be3 {[%clk 0:02:26]} 13... Bh4 {[%clk 0:02:41.5]} 14. Qf3
{[%clk 0:02:25.7]} 14... f5 {[%clk 0:02:41.7]} 15. Bxc5 {[%clk 0:02:25.4]} 15...
dxc5 {[%clk 0:02:39.9]} 16. Rad1 {[%clk 0:02:21.5]} 16... Qe8 {[%clk 0:02:35.5]}
17. exf5 {[%clk 0:02:20.5]} 17... Bxf5 {[%clk 0:02:33.2]} 18. Qxb7 {[%clk
0:02:00.9]} 18... Bxc2 {[%clk 0:02:24.9]} 19. Rd2 {[%clk 0:02:00]} 19... Rb8
{[%clk 0:02:21.5]} 20. Qxc7 {[%clk 0:01:55.8]} 20... Bxb3 {[%clk 0:02:21.6]} 21.
Qxc5 {[%clk 0:01:48.4]} 21... Rc8 {[%clk 0:02:17.4]} 22. Qxa7 {[%clk 0:01:40.3]}
22... Bxc4 {[%clk 0:02:16.9]} 23. Qe3 {[%clk 0:01:29.6]} 23... Qg6 {[%clk
0:02:07.3]} 24. Ne4 {[%clk 0:01:21.7]} 24... Bd8 {[%clk 0:01:48.2]} 25. Nd6
{[%clk 0:00:46.2]} 25... Bg5 {[%clk 0:01:43.7]} 26. f4 {[%clk 0:00:32.8]} 26...
exf4 {[%clk 0:01:34.1]} 27. Nxf4 {[%clk 0:00:20.1]} 27... Bxf4 {[%clk
0:01:30.5]} 28. Rxf4 {[%clk 0:00:20.5]} 28... Qb1+ {[%clk 0:01:28.2]} 29. Kf2
{[%clk 0:00:18.6]} 29... Qf1+ {[%clk 0:00:45.6]} 30. Kg3 {[%clk 0:00:18.5]}
30... Rxf4 {[%clk 0:00:45.7]} 31. Qxf4 {[%clk 0:00:13]} 31... Qe1+ {[%clk
0:00:45.5]} 32. Rf2 {[%clk 0:00:07.2]} 32... Qc3+ {[%clk 0:00:25.2]} 33. Kh4
{[%clk 0:00:06.7]} 33... Ra8 {[%clk 0:00:16.3]} 34. Qf8+ {[%clk 0:00:04.9]}
34... Rxf8 {[%clk 0:00:15]} 35. Rxf8+ {[%clk 0:00:05.8]} 35... Bg8 {[%clk
0:00:15]} 36. Nf7# {[%clk 0:00:06.3]} 1-0